bitfinex-derivatives/quotes_ETHF0:USTF0_20251012
["timestamp","ask_amount","ask_price","bid_price","bid_amount"]
[1760227965331,0.48173,3732.8,3732.7,0.3369]
[1760227965627,0.48168,3733.2,3732.8,0.3369]
[1760227965828,0.48168,3733.2,3733.1,0.3369]
[1760227966830,0.00327537,3733.3,3733.1,0.81858]
[1760227967029,0.00327537,3733.3,3733.2,0.3369]
[1760227968235,0.37007537,3733.3,3733.0,0.3369]
[1760227968434,0.3668,3733.2,3732.7,0.3369]
[1760227968629,0.48493537,3733.3,3733.1,0.3369]
[1760227968933,0.00327537,3733.3,3733.1,0.81858]
[1760227969127,0.00327537,3733.3,3733.2,0.3369]
[1760227971837,0.00327537,3733.3,3733.2,5.3369]
[1760227972037,0.3668,3734.9,3733.3,1.20413]
[1760227972238,0.48146,3734.9,3734.6,0.3369]
[1760227972440,0.48148,3734.8,3734.6,0.3369]
[1760227972634,0.48148,3734.8,3734.5,0.14]
[1760227973033,0.48486011,3734.8,3734.6,0.3369]
[1760227973238,0.48486011,3734.8,3734.5,0.14]
[1760227973830,0.48486011,3734.8,3734.3,0.3369]
[1760227973831,0.48149,3734.7,3734.3,0.3369]
[1760227974038,0.48157,3734.0,3733.6,0.3369]
[1760227974234,0.84837,3734.0,3733.6,0.3369]
[1760227974639,0.48157,3734.0,3733.6,0.3369]
[1760227974839,0.48159,3733.9,3733.5,0.62163]
[1760227975045,0.48159,3733.9,3733.6,0.3369]
[1760227975246,0.48161,3733.7,3733.6,0.3369]
[1760227975541,0.48167,3733.3,3733.0,0.14]
[1760227975842,0.48168,3733.2,3733.1,0.3369]
[1760227977443,0.48165,3733.4,3733.0,0.14]
[1760227977840,1.20389,3734.2,3733.1,0.3369]
[1760227978145,0.84854,3732.7,3732.6,0.00326907]
[1760227978843,0.84854,3732.7,3732.6,0.34016907]
[1760227979039,0.48171,3732.9,3732.7,0.3369]
[1760227979340,0.3668,3733.5,3732.7,0.3369]
[1760227979535,0.0572,3734.0,3733.0,0.14]
[1760227979536,0.48167,3733.3,3733.0,0.14]
[1760227979737,0.48163,3733.6,3733.2,0.3369]
[1760227980038,0.48164,3733.5,3733.0,0.14]
[1760227980238,0.48164,3733.5,3733.1,0.3369]
[1760227980431,0.48165,3733.4,3733.1,0.3369]
[1760227980745,0.48165,3733.4,3733.0,0.14]
[1760227980746,0.48167,3733.3,3733.0,0.14]
[1760227980941,0.48167,3733.3,3733.1,0.3369]
[1760227981441,0.48164,3733.5,3733.1,0.81858]
[1760227981642,0.48155,3734.2,3733.1,0.3369]
[1760227981843,0.00338011,3734.8,3734.6,0.3369]
[1760227982030,0.48148,3734.7,3734.6,0.3369]
[1760227982738,0.00338011,3734.8,3734.5,0.14]
[1760227983237,0.00338011,3734.8,3734.6,0.3369]
[1760227983745,0.48485011,3734.8,3734.5,0.14]
[1760227984245,0.3668,3734.7,3734.1,0.3369]
[1760227984447,0.3668,3734.7,3734.0,0.4769]
[1760227984744,0.48156,3734.2,3734.1,0.3369]
[1760227985139,0.48152,3734.4,3733.8,0.48159]
[1760227985344,0.48154,3734.3,3733.9,0.3454]
[1760227985540,0.48151,3734.5,3734.1,0.3454]
[1760227985747,0.48151,3734.5,3734.0,0.1429]
[1760227985748,0.48152,3734.4,3734.0,0.1429]
[1760227986244,0.48154,3734.3,3734.0,0.1429]
[1760227986450,0.48154,3734.3,3734.0,0.62446]
[1760227986640,0.48151,3734.5,3734.1,0.3454]
[1760227987042,0.48151,3734.5,3734.0,0.62446]
[1760227987338,0.48152,3734.4,3734.1,0.3454]
[1760227987843,0.48152,3734.4,3734.0,0.62446]
[1760227988043,0.48152,3734.4,3734.1,0.3454]
[1760227988244,0.48155,3734.2,3734.1,0.3454]
[1760227990149,0.48153,3734.4,3734.1,0.3454]
[1760227990346,0.48153,3734.4,3734.0,0.62446]
[1760227991150,0.48153,3734.4,3734.2,0.48154]
[1760227991350,0.00338011,3734.8,3734.6,0.3454]
[1760227992047,0.48148,3734.7,3734.6,0.3454]
[1760227993249,0.00338011,3734.8,3734.6,0.82689]
[1760227993548,0.00338011,3734.8,3734.7,0.3454]
[1760227996849,0.48139,3735.4,3735.0,0.62433]
[1760227997049,0.48137,3735.6,3735.5,0.4883]
[1760227997850,0.00241132,3735.6,3735.5,0.14576598]
[1760227998347,0.00241132,3735.6,3735.5,0.49116598]
[1760227998750,0.48124,3736.6,3736.5,0.1429]
[1760227998951,0.3675,3736.9,3736.5,0.1429]
[1760227999150,0.48123,3736.7,3736.6,0.3454]
[1760227999345,0.3675,3737.4,3736.6,0.3454]
[1760227999550,0.48119,3737.0,3736.6,0.3454]
[1760227999856,0.00342928,3737.0,3736.6,0.82662]
[1760228000056,0.00342928,3737.0,3736.7,0.3454]
[1760228000259,0.48121,3736.8,3736.6,0.3454]
[1760228000649,0.48121,3736.8,3736.5,0.1429]
[1760228001355,0.00342928,3737.0,3736.5,0.1429]
[1760228001356,0.48461928,3737.0,3736.5,0.1429]
[1760228001559,0.48461928,3737.0,3736.5,0.62414]
[1760228001852,0.48461928,3737.0,3736.6,0.3454]
[1760228002057,0.4812,3736.9,3736.6,0.3454]
[1760228002257,0.4812,3736.9,3736.5,0.62414]
[1760228003457,0.48121,3736.8,3736.6,0.3454]
[1760228003760,0.48121,3736.8,3736.5,0.1429]
[1760228003961,0.48121,3736.8,3736.5,0.62414]
[1760228004264,0.85211928,3737.0,3736.6,0.3454]
[1760228004558,0.4812,3736.9,3736.6,0.3454]
[1760228004757,0.37092928,3737.0,3736.5,0.1429]
[1760228004957,0.48122,3736.7,3736.6,0.3454]
[1760228005260,0.48129,3736.2,3736.1,0.3454]
[1760228006751,0.84879,3736.2,3736.1,0.3454]
[1760228006961,0.48135,3735.8,3735.4,0.48138]
[1760228007256,0.3675,3736.2,3735.6,0.3454]
[1760228007461,0.48136,3735.7,3735.6,0.3454]
[1760228007661,0.3675,3736.5,3735.7,0.3454]
[1760228007861,1.20311,3736.6,3735.7,0.3454]
[1760228008064,0.48131,3736.1,3736.0,0.1429]
[1760228008362,0.48131,3736.1,3736.0,0.4883]
[1760228009956,0.48128,3736.3,3736.1,0.3454]
[1760228010155,0.4813,3736.1,3736.0,0.1429]
[1760228010362,0.8488,3736.1,3736.0,0.3454]
[1760228011456,0.48136,3735.6,3735.5,0.49116598]
[1760228012354,5.84886,3735.6,3735.5,0.00286598]
[1760228012551,0.3675,3734.8,3734.5,0.3454]
[1760228012760,0.84904,3734.2,3734.1,0.3454]
[1760228013260,0.48154,3734.2,3734.1,0.3454]
[1760228013462,0.48410431,3734.2,3734.1,0.34858267]
[1760228015561,0.84270431,3734.2,3734.1,0.00318267]
[1760228016057,0.48410431,3734.2,3734.1,0.33708267]
[1760228016260,0.00256431,3734.2,3734.1,0.33708267]
[1760228017256,0.3586,3735.4,3734.4,0.48151]
[1760228017562,1.20337,3735.8,3734.6,0.3339]
[1760228017563,0.48147,3734.8,3734.6,0.3339]
[1760228018457,0.48461502,3734.8,3734.6,0.3339]
[1760228019360,0.00314502,3734.8,3734.6,0.3339]
[1760228019558,0.48461502,3734.8,3734.6,0.3339]
[1760228019955,0.00314502,3734.8,3734.6,0.3339]
[1760228020161,0.00314502,3734.8,3734.6,0.48149]
[1760228020364,0.00314502,3734.8,3734.7,0.3339]
[1760228021363,0.34354502,3734.8,3734.7,0.3339]
[1760228022957,0.48148,3734.7,3734.5,0.1405]
[1760228023265,0.48148,3734.7,3734.1,0.00318267]
[1760228023266,1.20371,3734.7,3734.2,0.3663]
[1760228023562,0.3404,3734.2,3734.1,0.00318267]
[1760228025770,0.48153,3734.4,3734.2,0.3663]
[1760228026268,0.48154,3734.3,3734.2,0.3663]
[1760228028662,0.00314502,3734.8,3734.1,0.00318267]
[1760228028865,0.00314502,3734.8,3734.7,0.3663]
[1760228032274,0.34354502,3734.8,3734.7,0.3663]
[1760228032471,0.34354502,3734.8,3734.1,0.00318267]
[1760228032678,0.34354502,3734.8,3734.2,0.3663]
[1760228034685,0.00314502,3734.8,3734.6,0.3663]
[1760228035078,0.00314502,3734.8,3734.5,0.1445]
[1760228035279,0.00314502,3734.8,3734.6,0.3663]
[1760228035582,0.48461502,3734.8,3734.5,0.1445]
[1760228035882,0.48149,3734.7,3734.6,0.3663]
[1760228036285,0.82189,3734.7,3734.6,0.3663]
[1760228037583,0.48149,3734.7,3734.6,0.3663]
[1760228040593,0.00314502,3734.8,3734.6,0.84778]
[1760228040788,0.00314502,3734.8,3734.7,5.3663]
[1760228041885,0.00314502,3734.8,3734.7,0.3663]
[1760228042693,0.48148,3734.7,3734.6,0.3663]
[1760228043785,0.48148,3734.7,3734.1,0.48473267]
[1760228043786,0.48154,3734.2,3734.1,0.36948267]
[1760228043982,0.82194,3734.2,3734.1,0.00318267]
[1760228044884,5.82194,3734.2,3734.1,0.00318267]
[1760228046886,0.48165,3733.4,3733.3,0.3662]
[1760228047090,0.48165,3733.4,3733.0,0.5091]
[1760228047091,0.48168,3733.1,3733.0,0.5091]
[1760228047791,0.48168,3733.1,3733.0,0.512252]
[1760228047985,0.48166,3733.4,3733.1,0.3662]
[1760228048492,0.3497,3733.8,3733.1,0.3662]
[1760228048493,0.48167,3733.3,3733.1,0.3662]
[1760228048692,0.3497,3733.8,3733.1,0.3662]
[1760228048693,0.48168,3733.2,3733.1,0.3662]
[1760228049091,0.3497,3733.1,3733.0,0.003152]
[1760228049994,0.3497,3733.1,3733.0,0.369352]
[1760228050297,5.3497,3733.1,3733.0,0.003152]
[1760228050891,0.3497,3733.1,3733.0,0.369352]
[1760228051494,0.3497,3733.1,3733.0,0.003152]
[1760228051793,0.48168,3733.2,3733.0,0.369352]
[1760228051990,0.48168,3733.2,3733.1,0.3662]
[1760228053392,0.83138,3733.2,3733.1,0.3662]
[1760228053799,0.83138,3733.2,3733.0,0.003152]
[1760228054595,0.48168,3733.2,3733.0,0.003152]
[1760228054799,0.3497,3733.1,3733.0,0.003152]
[1760228054991,0.3497,3733.1,3733.0,0.369352]
[1760228055192,0.3497,3733.1,3733.0,0.003152]
[1760228055390,5.3497,3733.1,3733.0,0.003152]
[1760228056396,0.48184,3732.0,3731.5,0.1445]
[1760228056696,0.48184,3732.0,3731.6,0.3662]
[1760228056998,0.3497,3732.4,3731.6,0.3662]
[1760228057194,0.3497,3732.1,3731.6,0.3662]
[1760228057400,0.48187,3731.7,3731.6,0.36916812]
[1760228058899,0.48185,3731.9,3731.6,0.00296812]
[1760228059294,0.00285647,3732.1,3732.0,0.5025]
[1760228061999,0.00285647,3732.1,3732.0,5.5025]
[1760228068494,0.00285647,3732.1,3732.0,5.98]
[1760228068810,0.23375647,3732.1,3732.0,5.6023]
[1760228069104,0.23375647,3732.1,3732.0,5.98]
[1760228069506,0.00285647,3732.1,3732.0,5.98]
[1760228072900,5.266,3733.8,3732.0,5.98]
[1760228072901,0.48164,3733.5,3733.2,0.4775]
[1760228073106,0.48164,3733.5,3733.4,0.4775]
[1760228073300,0.48164,3733.5,3733.4,0.8437]
[1760228073497,0.71254,3733.5,3733.4,0.8437]
[1760228073694,0.23388072,3733.5,3733.4,0.8437]
[1760228073904,0.00298072,3733.5,3733.4,0.8437]
[1760228082107,0.46958072,3733.5,3733.4,0.3662]
[1760228082312,0.35908072,3733.5,3733.0,0.1363]
[1760228082612,0.72238,3733.2,3733.1,0.8392]
[1760228083003,0.3561,3733.1,3732.6,0.3646]
[1760228083203,0.06018072,3733.5,3732.5,0.1363]
[1760228083400,0.72243,3732.8,3732.7,0.5997]
[1760228083608,0.94833,3732.8,3732.7,0.5997]
[1760228083811,0.94833,3732.8,3732.7,0.8392]
[1760228085415,0.72243,3732.8,3732.7,0.8392]
[1760228086312,0.4817,3733.0,3732.7,0.4746]
[1760228086514,0.00298072,3733.5,3732.9,0.8392]
[1760228086710,0.48461072,3733.5,3733.4,0.8392]
[1760228087217,0.00298072,3733.5,3733.4,0.8392]
[1760228087412,0.00298072,3733.5,3733.4,0.3646]
[1760228090312,0.48153,3734.4,3734.0,0.1475]
[1760228090519,0.4923,3735.0,3734.5,0.1475]
[1760228090712,0.1362,3735.0,3734.5,0.1475]
[1760228090913,0.48147,3734.8,3734.6,0.3646]
[1760228091113,0.48147,3734.8,3734.5,0.1475]
[1760228091114,0.48156,3734.1,3734.0,0.5121]
[1760228091318,0.48405812,3734.1,3734.0,0.51439616]
[1760228091826,0.84015812,3734.1,3734.0,0.36689616]
[1760228092016,5.84015812,3734.1,3734.0,0.00229616]
[1760228096322,0.48405812,3734.1,3734.0,0.51439616]
[1760228096516,0.00249812,3734.1,3734.0,0.51439616]
[1760228097219,0.35859812,3734.1,3734.0,0.36689616]
[1760228098023,0.00249812,3734.1,3734.0,0.36689616]
[1760228098416,0.00249812,3734.1,3734.0,0.51439616]
[1760228102824,1.20348,3735.4,3734.3,0.48152]
[1760228103022,0.48149,3734.7,3734.6,0.3646]
[1760228103328,0.83759,3734.7,3734.6,0.3646]
[1760228103527,0.48153,3734.4,3734.1,0.3646]
[1760228103827,0.48354074,3734.4,3734.1,0.3646]
[1760228104224,0.48154,3734.3,3734.1,0.3646]
[1760228104425,0.48155,3734.2,3734.1,0.3646]
[1760228105224,0.3335,3734.1,3734.0,0.00229616]
[1760228108030,0.48155,3734.2,3734.0,0.00229616]
[1760228108225,0.81505,3734.2,3734.1,0.3587]
[1760228108532,0.48155,3734.2,3734.1,0.3587]
[1760228108832,0.3335,3734.1,3734.0,0.00229616]
[1760228109034,0.48181,3732.1,3731.7,2.38822605]
[1760228109227,0.48184,3731.9,3731.5,0.1386]
[1760228109425,0.48189,3731.5,3731.3,0.00091976]
[1760228109732,0.48189,3731.5,3731.4,0.3587]
[1760228109927,0.48467394,3731.5,3731.4,0.3613415]
[1760228110730,0.00278394,3731.5,3731.4,0.3613415]
[1760228112944,0.3335,3733.0,3732.2,0.3587]
[1760228113126,1.20408,3733.6,3732.2,0.3587]
[1760228113326,0.48174,3732.7,3732.5,0.1386]
[1760228113535,0.48174,3732.7,3732.6,0.3587]
[1760228113940,0.48419876,3732.7,3732.6,0.3587]
[1760228114434,0.00245876,3732.7,3732.6,0.3587]
[1760228116239,0.3335,3734.5,3733.4,0.3587]
[1760228116431,0.3335,3734.5,3733.0,0.1386]
[1760228116432,0.48154,3734.3,3733.6,0.84031]
[1760228116631,0.48155,3734.2,3733.7,0.3587]
[1760228116931,0.48147,3734.8,3734.3,0.3587]
[1760228117128,0.00266924,3734.8,3734.6,0.84018]
[1760228117425,0.00266924,3734.8,3734.7,0.3587]
[1760228117835,0.00266924,3734.8,3734.7,5.3587]
[1760228118032,0.48413924,3734.8,3734.7,0.3587]
[1760228118332,0.48413924,3734.8,3734.4,0.3587]
[1760228118525,0.81763924,3734.8,3734.4,0.3587]
[1760228118725,0.00266924,3734.8,3734.4,0.3587]
[1760228118930,0.00266924,3734.8,3734.3,0.48499935]
[1760228118931,0.00266924,3734.8,3734.6,0.84018]
[1760228119129,0.00266924,3734.8,3734.7,0.3587]
[1760228119628,1.33944,3736.5,3734.7,0.3587]
[1760228119629,1.53666,3736.4,3734.8,0.3587]
[1760228119832,0.48129,3736.2,3735.6,0.48135]
[1760228120030,0.8148,3736.1,3735.5,0.1386]
[1760228120230,0.48132,3736.0,3735.5,0.1386]
[1760228120438,0.48135,3735.7,3735.0,0.1386]
[1760228120633,0.48137,3735.6,3735.0,0.1386]
[1760228120834,0.48139,3735.4,3735.0,0.1386]
[1760228121133,0.48138,3735.5,3734.9,0.3587]
[1760228121334,0.4814,3735.4,3735.0,0.1386]
[1760228121539,0.4814,3735.4,3735.1,0.3587]
[1760228121941,0.4814,3735.4,3735.0,0.1386]
[1760228122238,0.4814,3735.4,3735.1,0.3587]
[1760228122429,0.4814,3735.4,3735.0,0.1386]
[1760228122627,0.4814,3735.4,3735.1,0.3587]
[1760228122830,0.4814,3735.4,3735.0,0.1386]
[1760228123234,0.48137,3735.6,3735.0,0.1386]
[1760228123636,0.48139,3735.5,3735.1,0.3587]
[1760228124242,0.0030083,3736.0,3735.1,0.3587]
[1760228124435,0.48133,3735.9,3735.5,0.1386]
[1760228125032,0.48136,3735.7,3735.6,0.3587]
[1760228125233,0.0030083,3736.0,3735.0,0.1386]
[1760228125430,0.3335,3735.7,3735.1,0.3587]
[1760228125637,0.48138,3735.5,3735.0,0.62003]
[1760228125837,0.48138,3735.5,3735.1,0.3587]
[1760228126038,0.48138,3735.5,3735.0,0.62003]
[1760228126238,0.48138,3735.5,3735.1,0.3587]
[1760228126436,0.48138,3735.5,3735.2,0.3587]
[1760228126639,0.4814,3735.4,3735.0,0.1386]
[1760228126840,0.48141,3735.3,3735.1,0.3587]
[1760228127046,0.0030083,3736.0,3735.8,0.48133]
[1760228127240,0.48124,3736.6,3736.5,0.4973]
[1760228127441,0.48123,3736.7,3736.6,0.3587]
[1760228127849,0.48129,3736.2,3736.1,0.3587]
[1760228128044,0.48133,3735.9,3735.6,0.3587]
[1760228128347,0.48134,3735.8,3735.6,0.3587]
[1760228128647,0.0020853,3735.9,3735.6,0.84005]
[1760228128842,0.0020853,3735.9,3735.7,0.3587]
[1760228129049,0.0020853,3735.9,3735.8,0.3587]
[1760228130244,0.4812,3736.9,3736.0,0.1386]
[1760228130451,0.48122,3736.8,3736.6,0.3587]
[1760228130646,0.48122,3736.8,3736.5,0.1386]
[1760228130851,0.48123,3736.7,3736.5,0.1386]
[1760228131152,0.4812,3736.9,3736.5,0.61984]
[1760228131351,0.00235945,3736.7,3736.6,0.3587]
[1760228131958,0.00235945,3736.7,3736.6,0.83993]
[1760228134553,0.00235945,3736.7,3736.6,5.83993]
[1760228136949,0.48111,3737.6,3737.5,0.4967]
[1760228137654,0.48108,3737.8,3737.6,0.3542]
[1760228137854,0.4837916,3737.8,3737.6,0.3542]
[1760228138162,0.0027116,3737.8,3737.7,0.3542]
[1760228139454,1.2023,3739.1,3737.7,0.3542]
[1760228139455,0.3469,3739.2,3738.1,0.48103]
[1760228139656,0.48097,3738.7,3738.5,0.1425]
[1760228139855,0.48097,3738.7,3738.6,0.3542]
[1760228140055,0.3469,3739.6,3738.6,0.3542]
[1760228140356,0.48092,3739.1,3739.0,0.1425]
[1760228140562,0.48092,3739.1,3739.0,0.4967]
[1760228140962,0.48089,3739.3,3739.0,0.4967]
[1760228141163,0.48089,3739.3,3739.0,0.1425]
[1760228141359,0.48091,3739.2,3739.1,0.3395]
[1760228142160,0.00219911,3739.6,3739.1,0.3395]
[1760228142367,0.48304911,3739.6,3739.5,0.4835]
[1760228144472,0.4809,3739.2,3739.1,0.3395]
[1760228144766,0.00219911,3739.6,3739.5,0.4835]
[1760228145158,0.57766429,3741.4,3739.6,0.3395]
[1760228145465,0.69041339,3741.3,3740.5,0.4835]
[1760228145664,0.8494,3740.8,3740.1,0.3395]
[1760228145866,0.48071,3740.7,3740.1,0.3395]
[1760228146062,0.3687,3740.8,3740.1,0.3395]
[1760228146063,0.48074,3740.5,3740.1,0.3395]
[1760228146369,0.48075,3740.4,3740.1,0.00223323]
[1760228146563,0.48077,3740.3,3740.2,0.3395]
[1760228147773,0.3687,3740.2,3740.1,0.00223323]
[1760228148773,5.3687,3740.2,3740.1,0.00223323]
[1760228148972,0.48091,3739.1,3739.0,0.482]
[1760228149366,0.48097,3738.7,3738.6,0.3395]
[1760228150065,0.48097,3738.7,3738.6,0.34155863]
[1760228151466,0.3687,3739.5,3738.6,0.34155863]
[1760228151467,0.48094,3738.9,3738.6,0.34155863]
[1760228151772,0.48096,3738.8,3738.6,0.34155863]
[1760228151968,0.48088,3739.4,3738.9,0.48093]
[1760228152175,0.48087,3739.5,3739.1,0.48091]
[1760228152474,0.48087,3739.5,3739.0,0.144]
[1760228152475,0.48084,3739.7,3739.6,0.3395]
[1760228153670,0.48091,3739.1,3739.0,0.4835]
[1760228154272,0.48089,3739.3,3739.0,0.144]
[1760228154472,0.48091,3739.2,3739.0,0.144]
[1760228154775,0.48091,3739.2,3739.1,0.3395]
[1760228155877,0.48096,3738.7,3738.6,0.00205863]
[1760228156375,0.48096,3738.7,3738.6,0.34155863]
[1760228156576,0.84966,3738.7,3738.6,0.34155863]
[1760228156782,0.48096,3738.7,3738.6,0.34155863]
[1760228157575,0.3687,3740.0,3739.0,0.144]
[1760228157876,0.3687,3740.4,3739.6,0.3395]
[1760228158071,0.3687,3740.1,3739.5,0.144]
[1760228158276,0.48085,3739.6,3739.5,0.3395]
[1760228158779,0.48083,3739.8,3739.6,0.3395]
[1760228158969,0.48084,3739.7,3739.6,0.3395]
[1760228160379,0.48084,3739.7,3739.0,0.144]
[1760228160380,0.48088,3739.4,3739.1,0.3395]
[1760228160576,0.3687,3739.2,3738.6,0.34155863]
[1760228160778,0.48092,3739.1,3738.7,0.3395]
[1760228160976,1.20194,3740.2,3739.1,0.82041]
[1760228161179,0.48087,3739.5,3739.2,0.3395]
[1760228161381,0.48089,3739.3,3739.0,0.144]
[1760228161685,0.84962,3739.1,3738.8,0.3395]
[1760228161885,0.48089,3739.3,3739.1,0.3395]
[1760228162087,0.48086,3739.5,3739.1,0.3395]
[1760228162277,0.3687,3740.1,3739.3,0.3395]
[1760228162278,0.48084,3739.7,3739.3,0.3395]
[1760228162482,0.48084,3739.7,3739.6,0.3395]
[1760228163385,0.00341149,3740.5,3740.1,0.3395]
[1760228163582,0.48076,3740.3,3740.1,0.3395]
[1760228163879,0.48076,3740.3,3740.0,0.144]
[1760228163880,0.48076,3740.3,3740.0,0.62479]
[1760228164082,0.48415149,3740.5,3740.1,0.3395]
[1760228164284,0.00341149,3740.5,3740.3,0.3395]
[1760228164485,0.00341149,3740.5,3740.3,0.48075]
[1760228164684,0.00341149,3740.5,3740.4,0.3395]
[1760228167684,0.95188737,3741.3,3740.4,5.0]
[1760228167885,0.48054,3742.0,3741.4,0.48061]
[1760228168094,0.6786865,3741.9,3741.6,0.3358]
[1760228168281,0.95188737,3742.5,3741.6,0.3358]
[1760228168282,0.48052,3742.2,3741.6,0.48058]
[1760228168589,0.67857132,3742.1,3742.0,0.4747]
[1760228168789,0.68162516,3742.1,3742.0,0.47730513]
[1760228169082,0.00305384,3742.1,3742.0,5.47730513]
[1760228169681,0.022,3742.8,3742.0,5.47730513]
[1760228169682,0.022,3742.8,3742.6,0.3358]
[1760228169879,0.022,3742.8,3742.6,0.81625]
[1760228170187,0.21368737,3744.1,3743.5,0.1389]
[1760228170484,0.3559,3744.5,3743.6,0.2373]
[1760228170687,0.48025,3744.3,3743.6,0.2373]
[1760228171085,0.49303,3744.5,3743.7,0.48031]
[1760228171390,0.49303,3744.5,3743.6,0.2373]
[1760228171597,0.48027,3744.2,3743.6,0.2373]
[1760228171889,0.3559,3744.1,3743.7,0.2373]
[1760228172286,0.48023,3744.4,3743.6,0.2373]
[1760228172490,0.35933,3744.5,3743.6,0.2373]
[1760228172491,0.48026,3744.3,3743.6,0.2373]
[1760228173387,0.3559,3743.9,3743.1,0.2373]
[1760228173587,0.48035,3743.5,3742.8,0.48043]
[1760228173791,0.83628,3743.3,3742.6,0.2373]
[1760228173992,0.3559,3743.3,3742.6,0.71775]
[1760228174588,0.3559,3743.3,3742.6,0.2373]
[1760228174790,0.3559,3743.2,3742.8,0.71773]
[1760228174990,0.1337,3743.5,3742.4,0.48048]
[1760228175293,0.1337,3743.0,3742.4,0.48048]
[1760228175684,0.1337,3744.0,3742.9,0.48042]
[1760228175890,0.48032,3743.8,3742.9,0.2373]
[1760228176085,0.48032,3743.8,3743.4,0.2373]
[1760228176296,0.48033,3743.7,3742.3,0.2373]
[1760228176793,0.48034,3743.6,3743.0,0.48041]
[1760228176992,0.3559,3743.4,3743.0,0.48041]
[1760228177196,0.3559,3743.4,3742.1,0.2373]
[1760228177389,0.48038,3743.3,3742.7,0.48044]
[1760228177789,0.3559,3743.2,3742.8,0.71773]
[1760228178188,0.4804,3743.1,3742.8,0.2373]
[1760228178383,0.8363,3743.1,3742.8,0.2373]
[1760228178584,0.83632,3743.0,3742.4,0.48048]
[1760228178984,0.83632,3743.0,3742.5,0.71777]
[1760228178985,0.3559,3742.9,3742.5,0.71777]
[1760228179186,0.83627,3743.3,3742.9,0.2373]
[1760228179786,0.48037,3743.3,3742.9,0.2373]
[1760228179986,0.48037,3743.3,3742.8,0.48043]
[1760228180188,0.48037,3743.3,3742.9,0.2373]
[1760228180388,0.48037,3743.3,3742.8,0.48043]
[1760228180594,0.48037,3743.3,3742.9,0.2373]
[1760228180896,0.83631,3743.1,3742.9,0.2373]
[1760228181096,0.48052,3742.2,3742.0,0.00260513]
[1760228181299,0.3559,3742.1,3742.0,0.00260513]
[1760228181790,0.48052,3742.2,3742.1,0.2373]
[1760228181990,0.48049,3742.4,3742.1,0.2373]
[1760228182190,0.48051,3742.3,3742.1,0.2373]
[1760228182897,0.83643,3742.1,3742.0,0.00260513]
[1760228184201,0.48053,3742.1,3742.0,0.23990513]
[1760228184397,0.48053,3742.1,3742.0,0.00260513]
[1760228184398,0.83643,3742.1,3742.0,0.00260513]
[1760228185094,5.83643,3742.1,3742.0,0.00260513]
[1760228185395,0.3559,3741.3,3741.0,0.2373]
[1760228185795,0.3559,3741.3,3740.5,0.71803]
[1760228185995,0.3559,3741.3,3740.0,0.0985]
[1760228185996,0.48066,3741.1,3740.6,0.48071]
[1760228186201,0.48067,3741.0,3740.6,0.48270421]
[1760228186498,0.48069,3740.9,3740.7,0.2373]
[1760228186798,0.4807,3740.8,3740.6,0.00199421]
[1760228187002,0.8366,3740.8,3740.6,0.00199421]
[1760228187202,0.3559,3740.7,3740.6,0.00199421]
[1760228189200,0.4807,3740.8,3740.6,0.00199421]
[1760228189398,0.48398902,3741.1,3740.7,0.2373]
[1760228189701,0.48068,3741.0,3740.7,0.2373]
[1760228189903,0.48068,3741.0,3740.6,0.48271421]
[1760228190098,0.48068,3741.0,3740.7,0.2373]
[1760228190302,0.48068,3741.0,3740.6,0.48271421]
[1760228190505,0.48068,3741.0,3740.7,0.2373]
[1760228191195,0.48068,3741.0,3740.6,0.48271421]
[1760228191595,0.00332902,3741.1,3740.6,0.48271421]
[1760228191596,0.4807,3740.8,3740.6,0.00199421]
[1760228191797,0.48068,3741.0,3740.7,0.2373]
[1760228192103,0.83658,3741.0,3740.7,0.2373]
[1760228192298,0.83658,3741.0,3740.6,0.00199421]
[1760228192600,0.00332902,3741.1,3740.9,0.2373]
[1760228192806,0.00332902,3741.1,3740.6,0.00199421]
[1760228193206,0.48069,3740.9,3740.6,0.00199421]
[1760228193905,0.48069,3740.9,3740.7,0.2373]
[1760228194305,0.48069,3740.9,3740.6,0.00199421]
[1760228194496,0.48398902,3741.1,3740.7,0.4807]
[1760228194699,0.00332902,3741.1,3740.7,0.2373]
[1760228194902,0.00332902,3741.1,3740.9,0.48068]
[1760228195105,0.00332902,3741.1,3741.0,0.2373]
[1760228195607,0.48057,3741.8,3741.3,0.2373]
[1760228195907,0.48059,3741.7,3741.2,0.48064]
[1760228196102,0.4806,3741.6,3741.3,0.2373]
[1760228196307,0.48058,3741.7,3741.0,0.0694]
[1760228196508,0.48058,3741.7,3741.1,0.2373]
[1760228196801,0.48059,3741.6,3741.3,0.48062]
[1760228197007,0.48059,3741.6,3741.4,0.2373]
[1760228197206,0.4807,3740.8,3740.6,0.00199421]
[1760228197403,0.3359,3740.7,3740.6,0.00199421]
[1760228198310,5.3359,3740.7,3740.6,0.00199421]
[1760228198907,0.3359,3740.7,3740.6,0.00199421]
[1760228199105,0.4807,3740.8,3740.6,0.00199421]
[1760228199500,0.3359,3740.7,3740.6,0.00199421]
[1760228201302,0.48067,3741.0,3740.7,0.2373]
[1760228201610,0.48067,3741.0,3740.6,0.00199421]
[1760228202202,0.48069,3740.9,3740.6,0.00199421]
[1760228202608,0.48069,3740.9,3740.7,0.2373]
[1760228202808,0.48069,3740.9,3740.6,0.00199421]
[1760228204007,0.48069,3740.9,3740.7,0.2373]
[1760228204508,0.82341,3740.7,3740.6,0.00199421]
[1760228212521,5.82341,3740.7,3740.6,0.00199421]
[1760228212822,0.82354,3739.7,3739.5,0.2373]
[1760228213216,0.48084,3739.7,3739.2,0.48089]
[1760228213513,0.48076,3740.3,3739.7,0.71813]
[1760228213714,0.3427,3740.4,3740.0,0.48079]